[Event "17th Memorial Lezcano Montalvo 2025"]
[Site "Gran Canaria"]
[Date "2025.04.14"]
[Round "3.9"]
[White "Yelisieiev, Yevhenii"]
[Black "Paquico Rodriguez, Ivan"]
[Result "1-0"]
[Annotator "RC"]
[ECO "A41"]
[WhiteElo "2413"]
[BlackElo "2202"]
[PlyCount "83"]
[EventDate "2025.04.13"]
[EventType "swiss"]
[EventCountry "ESP"]
[SourceTitle "playchess.com"]
[Source "ChessBase"]
[SourceQuality "1"]
[TimeControl "5400+30"]

1. d4 {[%emt 0:00:03]} g6 {[%emt 0:00:16]} 2. Nf3 {[%emt 0:00:11]} Bg7 {[%emt 0:00:42]} 3. g3 {[%emt 0:00:30]} d6 {[%emt 0:00:34]} 4. Bg2 {[%emt 0:00:07]} Bd7 {[%emt 0:00:29]} 5. c4 {[%emt 0:09:00]} Qc8 {[%emt 0:03:48]} 6. h3 {[%emt 0:03:55]} Nc6 {[%emt 0:07:55]} 7. Nc3 {[%emt 0:04:53]} Nf6 {[%emt 0:08:16]} 8. e4 {[%emt 0:05:20]} O-O {[%emt 0:03:41]} 9. Be3 {[%emt 0:01:13]} e5 {[%emt 0:03:18]} 10. d5 {[%emt 0:01:31]} Nd8 {[%emt 0:04:04]} 11. c5 {[%emt 0:06:36]} Ne8 {[%emt 0:07:31]} 12. g4 {[%emt 0:02:06]} f6 {[%emt 0:14:57]} 13. Rc1 {[%emt 0:02:36]} Nf7 {[%emt 0:03:25]} 14. b4 {[%emt 0:00:26]} Qd8 {[%emt 0:02:08]} 15. Nd2 {[%emt 0:04:14]} Bh6 {[%emt 0:06:30]} 16. O-O {[%emt 0:03:21]} Bf4 {[%emt 0:05:17]} 17. Bxf4 {[%emt 0:11:12]} exf4 {[%emt 0:00:09]} 18. Ne2 {[%emt 0:00:25]} g5 {[%emt 0:02:55]} 19. Nd4 {[%emt 0:00:38]} Ng7 {[%emt 0:02:29]} 20. N2b3 {[%emt 0:01:24]} Ba4 {[%emt 0:03:09]} 21. Rc3 {[%emt 0:04:27]} Re8 {[%emt 0:01:08]} 22. Qc2 {[%emt 0:00:47]} Ne5 {[%emt 0:02:40]} 23. Rc1 {[%emt 0:00:48]} c6 {[%emt 0:03:07]} 24. dxc6 {[%emt 0:01:26]} bxc6 {[%emt 0:00:38]} 25. Rd1 {[%emt 0:03:26]} Rb8 {[%emt 0:01:43]} 26. b5 {[%emt 0:01:29]} Bxb5 {[%emt 0:08:14]} 27. Nxb5 {[%emt 0:00:55]} Rxb5 {[%emt 0:00:54]} 28. Rxd6 {[%emt 0:01:02]} Qe7 {[%emt 0:00:05]} 29. Qd1 {[%emt 0:02:25]} Ne6 {[%emt 0:00:26]} 30. Bf1 {[%emt 0:00:29]} Rb4 {[%emt 0:00:44]} 31. f3 {[%emt 0:00:55]} Qc7 {[%emt 0:01:09]} 32. a3 {[%emt 0:01:59]} Rb7 {[%emt 0:01:19]} 33. Bc4 {[%emt 0:04:14]} Nxc4 {[%emt 0:00:12]} 34. Rxc4 {[%emt 0:00:01]} Kg7 {[%emt 0:01:35]} 35. Rb4 {[%emt 0:00:22]} Re7 {[%emt 0:01:21]} 36. Nd4 {[%emt 0:02:28]} Nxd4 {[%emt 0:00:25]} 37. Qxd4 {[%emt 0:00:05]} Rf7 {[%emt 0:00:37]} 38. e5 {[%emt 0:00:11]} a5 {[%emt 0:00:24]} 39. Rb6 {[%emt 0:02:10]} Rxb6 {[%emt 0:01:06]} 40. cxb6 {[%emt 0:00:15]} Qb7 {[%emt 0:00:04]} 41. e6 {[%emt 0:01:16]} Re7 {[%emt 0:00:56]} 42. Rd7 {[%emt 0:00:29]} 1-0

[Event "17th Memorial Lezcano Montalvo 2025"]
[Site "Gran Canaria"]
[Date "2025.04.14"]
[Round "3.10"]
[White "Fiorito, Joaquin"]
[Black "Marrero Cardenes, Agustin"]
[Result "1-0"]
[Annotator "RC"]
[ECO "B12"]
[WhiteElo "2402"]
[BlackElo "2163"]
[PlyCount "53"]
[EventDate "2025.04.13"]
[EventType "swiss"]
[EventCountry "ESP"]
[SourceTitle "playchess.com"]
[Source "ChessBase"]
[SourceQuality "1"]
[TimeControl "5400+30"]

1. e4 {[%emt 0:00:02]} c6 {[%emt 0:00:08]} 2. d4 {[%emt 0:00:04]} d5 {[%emt 0:00:04]} 3. e5 {[%emt 0:00:04]} Bf5 {[%emt 0:00:07]} 4. h4 {[%emt 0:00:04]} h5 {[%emt 0:00:06]} 5. c4 {[%emt 0:00:03]} e6 {[%emt 0:00:07]} 6. Nc3 {[%emt 0:00:03]} dxc4 {[%emt 0:00:08]} 7. Bxc4 {[%emt 0:00:04]} Nd7 {[%emt 0:00:07]} 8. Nge2 {[%emt 0:00:07]} Be7 {[%emt 0:00:28]} 9. g3 {[%emt 0:00:05]} b5 {[%emt 0:03:00]} 10. Bd3 {[%emt 0:13:03]} Bxd3 {[%emt 0:02:44]} 11. Qxd3 {[%emt 0:00:06]} Qb6 {[%emt 0:00:13]} 12. a4 {[%emt 0:04:06]} b4 {[%emt 0:08:36]} 13. Ne4 {[%emt 0:01:01]} Nh6 {[%emt 0:03:32]} 14. Bxh6 {[%emt 0:01:52]} Rxh6 {[%emt 0:00:08]} 15. O-O {[%emt 0:01:45]} c5 {[%emt 0:06:36]} 16. Rfc1 {[%emt 0:04:24]} cxd4 {[%emt 0:07:41]} 17. a5 {[%emt 0:01:23]} Qb7 {[%emt 0:04:21]} 18. f4 {[%emt 0:08:40]} Rd8 {[%emt 0:09:59]} 19. Rc4 {[%emt 0:01:47]} f5 {[%emt 0:03:40]} 20. exf6 {[%emt 0:02:30]} gxf6 {[%emt 0:04:54]} 21. Rxd4 {[%emt 0:04:09]} f5 {[%emt 0:12:28]} 22. Nd6+ {[%emt 0:00:06]} Bxd6 {[%emt 0:00:07]} 23. Rxd6 {[%emt 0:00:03]} Rc8 {[%emt 0:00:24]} 24. a6 {[%emt 0:01:25]} Qc7 {[%emt 0:00:53]} 25. Rc1 {[%emt 0:00:05]} Qd8 {[%emt 0:02:59]} 26. Rd1 {[%emt 0:00:07]} Rc7 {[%emt 0:00:53]} 27. Nd4 {[%emt 0:00:54]} 1-0

[Event "17th Memorial Lezcano Montalvo 2025"]
[Site "Gran Canaria"]
[Date "2025.04.14"]
[Round "3.11"]
[White "Akhvlediani, Irakli"]
[Black "Blanco Garcia Bajo, David"]
[Result "1-0"]
[Annotator "RC"]
[ECO "A13"]
[WhiteElo "2387"]
[BlackElo "2098"]
[PlyCount "91"]
[EventDate "2025.04.13"]
[EventType "swiss"]
[EventCountry "ESP"]
[SourceTitle "playchess.com"]
[Source "ChessBase"]
[SourceQuality "1"]
[TimeControl "5400+30"]

1. c4 {[%emt 0:00:41]} e6 {[%emt 0:00:07]} 2. Nc3 {[%emt 0:00:05]} Bb4 {[%emt 0:00:11]} 3. Qb3 {[%emt 0:01:04]} Ba5 {[%emt 0:00:08]} 4. g3 {[%emt 0:03:58]} Nf6 {[%emt 0:00:39]} 5. Bg2 {[%emt 0:00:04]} Na6 {[%emt 0:09:16]} 6. Nf3 {[%emt 0:06:37]} c5 {[%emt 0:04:46]} 7. O-O {[%emt 0:00:46]} Bxc3 {[%emt 0:05:34]} 8. Qxc3 {[%emt 0:02:41]} O-O {[%emt 0:02:09]} 9. d4 {[%emt 0:01:20]} d6 {[%emt 0:11:01]} 10. Rd1 {[%emt 0:01:13]} Qe7 {[%emt 0:02:29]} 11. b3 {[%emt 0:22:21]} b6 {[%emt 0:04:31]} 12. Bg5 {[%emt 0:21:30]} Bb7 {[%emt 0:06:41]} 13. dxc5 {[%emt 0:00:30]} dxc5 {[%emt 0:02:03]} 14. Ne5 {[%emt 0:07:44]} Bxg2 {[%emt 0:03:49]} 15. Rd7 {[%emt 0:02:47]} Qxd7 {[%emt 0:07:49]} 16. Nxd7 {[%emt 0:00:24]} Nxd7 {[%emt 0:00:02]} 17. Kxg2 {[%emt 0:00:05]} f6 {[%emt 0:00:19]} 18. Be3 {[%emt 0:00:48]} Rfd8 {[%emt 0:01:49]} 19. a3 {[%emt 0:05:04]} Ne5 {[%emt 0:03:00]} 20. b4 {[%emt 0:02:41]} Rac8 {[%emt 0:02:33]} 21. b5 {[%emt 0:01:15]} Nc7 {[%emt 0:00:24]} 22. Bf4 {[%emt 0:00:54]} Ng6 {[%emt 0:01:02]} 23. Bxc7 {[%emt 0:00:04]} Rxc7 {[%emt 0:00:03]} 24. a4 {[%emt 0:00:03]} Rcd7 {[%emt 0:14:59]} 25. a5 {[%emt 0:00:43]} Rd2 {[%emt 0:00:28]} 26. axb6 {[%emt 0:00:18]} axb6 {[%emt 0:00:06]} 27. Ra8 {[%emt 0:01:24]} Kf7 {[%emt 0:00:46]} 28. Rxd8 {[%emt 0:01:26]} Rxd8 {[%emt 0:00:02]} 29. Qf3 {[%emt 0:00:11]} Ne5 {[%emt 0:01:22]} 30. Qb7+ {[%emt 0:00:08]} Nd7 {[%emt 0:00:07]} 31. f4 {[%emt 0:00:23]} g6 {[%emt 0:03:41]} 32. e4 {[%emt 0:00:24]} g5 {[%emt 0:02:54]} 33. Qc7 {[%emt 0:02:38]} Ke7 {[%emt 0:01:30]} 34. fxg5 {[%emt 0:00:20]} fxg5 {[%emt 0:00:18]} 35. e5 {[%emt 0:00:07]} Re8 {[%emt 0:01:13]} 36. g4 {[%emt 0:06:32]} Rf8 {[%emt 0:01:14]} 37. Qd6+ {[%emt 0:00:19]} Kd8 {[%emt 0:00:02]} 38. Qxe6 {[%emt 0:00:05]} Re8 {[%emt 0:00:06]} 39. Qh6 {[%emt 0:00:23]} Rxe5 {[%emt 0:00:06]} 40. Qxh7 {[%emt 0:00:03]} Nf6 {[%emt 0:02:46]} 41. Qg7 {[%emt 0:02:10]} Nd7 {[%emt 0:04:24]} 42. h4 {[%emt 0:00:58]} gxh4 {[%emt 0:00:33]} 43. g5 {[%emt 0:00:03]} Re4 {[%emt 0:02:00]} 44. g6 {[%emt 0:00:17]} Ne5 {[%emt 0:00:37]} 45. Qf8+ {[%emt 0:00:19]} Kd7 {[%emt 0:00:09]} 46. Qf5+ {[%emt 0:00:05]} 1-0

[Event "17th Memorial Lezcano Montalvo 2025"]
[Site "Gran Canaria"]
[Date "2025.04.14"]
[Round "3.12"]
[White "Tytynnik, Artem"]
[Black "Barski, Radoslaw"]
[Result "1-0"]
[Annotator "RC"]
[ECO "E11"]
[WhiteElo "2209"]
[BlackElo "2385"]
[PlyCount "71"]
[EventDate "2025.04.13"]
[EventType "swiss"]
[EventCountry "ESP"]
[SourceTitle "playchess.com"]
[Source "ChessBase"]
[SourceQuality "1"]
[TimeControl "5400+30"]

1. d4 {[%emt 0:04:53]} Nf6 {[%emt 0:00:13]} 2. c4 {[%emt 0:00:04]} e6 {[%emt 0:00:09]} 3. g3 {[%emt 0:00:04]} d5 {[%emt 0:00:06]} 4. Nf3 {[%emt 0:00:06]} Bb4+ {[%emt 0:00:08]} 5. Bd2 {[%emt 0:00:16]} Be7 {[%emt 0:00:08]} 6. Qc2 {[%emt 0:00:12]} O-O {[%emt 0:00:33]} 7. Bg2 {[%emt 0:00:07]} Nbd7 {[%emt 0:00:25]} 8. O-O {[%emt 0:00:18]} c6 {[%emt 0:00:11]} 9. Rd1 {[%emt 0:00:50]} a5 {[%emt 0:00:27]} 10. Bf4 {[%emt 0:00:28]} h6 {[%emt 0:00:48]} 11. b3 {[%emt 0:05:12]} Ne4 {[%emt 0:49:23]} 12. Ne5 {[%emt 0:06:00]} Nxe5 {[%emt 0:00:32]} 13. dxe5 {[%emt 0:02:35]} f5 {[%emt 0:00:44]} 14. Be3 {[%emt 0:04:53]} a4 {[%emt 0:07:55]} 15. bxa4 {[%emt 0:06:47]} Qa5 {[%emt 0:00:58]} 16. cxd5 {[%emt 0:04:22]} exd5 {[%emt 0:05:30]} 17. f3 {[%emt 0:04:09]} Bg5 {[%emt 0:12:51]} 18. Bd4 {[%emt 0:15:43]} c5 {[%emt 0:03:15]} 19. fxe4 {[%emt 0:00:54]} cxd4 {[%emt 0:00:08]} 20. exd5 {[%emt 0:00:26]} Be3+ {[%emt 0:01:18]} 21. Kh1 {[%emt 0:00:25]} Bd7 {[%emt 0:00:23]} 22. Nd2 {[%emt 0:08:51]} Bxa4 {[%emt 0:00:10]} 23. Nb3 {[%emt 0:00:29]} f4 {[%emt 0:09:12]} 24. Qd3 {[%emt 0:10:18]} Bxb3 {[%emt 0:02:52]} 25. Qxb3 {[%emt 0:00:11]} fxg3 {[%emt 0:00:04]} 26. Rf1 {[%emt 0:13:54]} Rf2 {[%emt 0:02:49]} 27. hxg3 {[%emt 0:00:29]} Rxe2 {[%emt 0:00:28]} 28. Qxb7 {[%emt 0:02:21]} Kh8 {[%emt 0:02:50]} 29. e6 {[%emt 0:05:48]} Bg5 {[%emt 0:00:00]} 30. d6 {[%emt 0:01:57]} Re8 {[%emt 0:00:06]} 31. Qd5 {[%emt 0:01:24]} Qc3 {[%emt 0:00:29]} 32. e7 {[%emt 0:01:08]} Bxe7 {[%emt 0:00:48]} 33. dxe7 {[%emt 0:00:01]} R2xe7 {[%emt 0:00:19]} 34. Qd6 {[%emt 0:00:53]} Re5 {[%emt 0:01:18]} 35. Bf3 {[%emt 0:00:57]} Re3 {[%emt 0:00:30]} 36. Qf4 {[%emt 0:01:05]} 1-0

[Event "17th Memorial Lezcano Montalvo 2025"]
[Site "Gran Canaria"]
[Date "2025.04.14"]
[Round "3.13"]
[White "Narciso Dublan, Marc"]
[Black "Rivero Tacoronte, Gabriel"]
[Result "1-0"]
[Annotator "RC"]
[ECO "D12"]
[WhiteElo "2376"]
[BlackElo "1963"]
[PlyCount "81"]
[EventDate "2025.04.13"]
[EventType "swiss"]
[EventCountry "ESP"]
[SourceTitle "playchess.com"]
[Source "ChessBase"]
[SourceQuality "1"]
[TimeControl "5400+30"]

1. d4 {[%emt 0:00:07]} d5 {[%emt 0:00:08]} 2. Nf3 {[%emt 0:00:20]} Nf6 {[%emt 0:00:12]} 3. e3 {[%emt 0:00:40]} Bf5 {[%emt 0:00:27]} 4. c4 {[%emt 0:00:17]} c6 {[%emt 0:00:04]} 5. Nc3 {[%emt 0:00:18]} e6 {[%emt 0:00:06]} 6. Nh4 {[%emt 0:00:16]} Bg6 {[%emt 0:00:05]} 7. Nxg6 {[%emt 0:00:22]} hxg6 {[%emt 0:00:04]} 8. Bd3 {[%emt 0:00:17]} Bd6 {[%emt 0:00:56]} 9. h3 {[%emt 0:02:18]} Nbd7 {[%emt 0:01:20]} 10. O-O {[%emt 0:00:13]} Qe7 {[%emt 0:10:31]} 11. Qc2 {[%emt 0:05:30]} g5 {[%emt 0:13:57]} 12. cxd5 {[%emt 0:00:43]} cxd5 {[%emt 0:00:22]} 13. e4 {[%emt 0:12:20]} dxe4 {[%emt 0:00:14]} 14. Bxe4 {[%emt 0:00:47]} g4 {[%emt 0:01:05]} 15. Bxb7 {[%emt 0:10:16]} Rb8 {[%emt 0:00:55]} 16. Be4 {[%emt 0:04:57]} Nxe4 {[%emt 0:15:08]} 17. Nxe4 {[%emt 0:02:48]} gxh3 {[%emt 0:00:19]} 18. g3 {[%emt 0:01:52]} Rd8 {[%emt 0:08:28]} 19. Bg5 {[%emt 0:25:41]} f6 {[%emt 0:12:03]} 20. Bd2 {[%emt 0:00:09]} Kf7 {[%emt 0:04:47]} 21. Rae1 {[%emt 0:02:55]} Rc8 {[%emt 0:08:00]} 22. Qb3 {[%emt 0:02:12]} Nb6 {[%emt 0:00:46]} 23. Qf3 {[%emt 0:05:44]} Kg8 {[%emt 0:01:10]} 24. Re2 {[%emt 0:01:52]} e5 {[%emt 0:08:17]} 25. Rfe1 {[%emt 0:08:11]} Re8 {[%emt 0:01:10]} 26. Bc3 {[%emt 0:04:32]} Nd7 {[%emt 0:00:51]} 27. Nxd6 {[%emt 0:03:56]} Qxd6 {[%emt 0:00:03]} 28. Kh2 {[%emt 0:00:35]} Rh6 {[%emt 0:01:40]} 29. Qf5 {[%emt 0:02:25]} Qd5 {[%emt 0:02:13]} 30. f4 {[%emt 0:01:39]} g6 {[%emt 0:03:30]} 31. Qc2 {[%emt 0:01:05]} Qxa2 {[%emt 0:03:12]} 32. dxe5 {[%emt 0:00:19]} fxe5 {[%emt 0:00:05]} 33. fxe5 {[%emt 0:00:22]} Qe6 {[%emt 0:00:04]} 34. Rf2 {[%emt 0:00:43]} g5 {[%emt 0:01:36]} 35. Qd2 {[%emt 0:00:29]} Rg6 {[%emt 0:00:40]} 36. Qd3 {[%emt 0:00:31]} Qc6 {[%emt 0:03:22]} 37. Ree2 {[%emt 0:00:43]} g4 {[%emt 0:00:36]} 38. Re4 {[%emt 0:00:30]} Nc5 {[%emt 0:00:28]} 39. Qc4+ {[%emt 0:00:12]} Ree6 {[%emt 0:00:05]} 40. Rxg4 {[%emt 0:00:25]} Ne4 {[%emt 0:00:46]} 41. Rxg6+ {[%emt 0:00:08]} 1-0

[Event "17th Memorial Lezcano Montalvo 2025"]
[Site "Gran Canaria"]
[Date "2025.04.14"]
[Round "3.14"]
[White "Garcia Brion, Eduardo"]
[Black "Strikovic, Aleksa"]
[Result "0-1"]
[Annotator "RC"]
[ECO "B47"]
[WhiteElo "2171"]
[BlackElo "2367"]
[PlyCount "80"]
[EventDate "2025.04.13"]
[EventType "swiss"]
[EventCountry "ESP"]
[SourceTitle "playchess.com"]
[Source "ChessBase"]
[SourceQuality "1"]
[TimeControl "5400+30"]

1. e4 {[%emt 0:01:18]} c5 {[%emt 0:00:25]} 2. Nf3 {[%emt 0:00:45]} e6 {[%emt 0:00:34]} 3. d4 {[%emt 0:00:15]} cxd4 {[%emt 0:00:06]} 4. Nxd4 {[%emt 0:00:06]} Nc6 {[%emt 0:00:23]} 5. Nc3 {[%emt 0:00:26]} Qc7 {[%emt 0:00:11]} 6. g3 {[%emt 0:00:29]} Nf6 {[%emt 0:01:44]} 7. Bg2 {[%emt 0:00:10]} a6 {[%emt 0:00:04]} 8. O-O {[%emt 0:01:01]} Nxd4 {[%emt 0:00:04]} 9. Qxd4 {[%emt 0:00:03]} Bc5 {[%emt 0:00:05]} 10. Bf4 {[%emt 0:00:05]} d6 {[%emt 0:00:07]} 11. Qd2 {[%emt 0:11:30]} h6 {[%emt 0:00:09]} 12. Na4 {[%emt 0:03:52]} e5 {[%emt 0:02:59]} 13. Nxc5 {[%emt 0:02:13]} exf4 {[%emt 0:00:46]} 14. Nd3 {[%emt 0:01:22]} fxg3 {[%emt 0:00:08]} 15. hxg3 {[%emt 0:00:20]} O-O {[%emt 0:01:06]} 16. Rfe1 {[%emt 0:02:43]} Re8 {[%emt 0:06:10]} 17. Re2 {[%emt 0:02:14]} Bg4 {[%emt 0:00:48]} 18. Re3 {[%emt 0:00:30]} Rac8 {[%emt 0:02:06]} 19. Rc1 {[%emt 0:08:00]} b5 {[%emt 0:17:37]} 20. Qe1 {[%emt 0:16:38]} Be6 {[%emt 0:14:18]} 21. e5 {[%emt 0:28:31]} dxe5 {[%emt 0:10:54]} 22. Nxe5 {[%emt 0:00:04]} Qb6 {[%emt 0:05:13]} 23. a3 {[%emt 0:02:20]} Red8 {[%emt 0:01:31]} 24. Rd3 {[%emt 0:07:24]} Rxd3 {[%emt 0:00:21]} 25. Nxd3 {[%emt 0:00:07]} Bf5 {[%emt 0:00:08]} 26. Qe2 {[%emt 0:00:40]} Qd4 {[%emt 0:01:02]} 27. Rd1 {[%emt 0:01:37]} Bg4 {[%emt 0:00:49]} 28. Bf3 {[%emt 0:01:46]} Re8 {[%emt 0:04:11]} 29. Bxg4 {[%emt 0:00:05]} Rxe2 {[%emt 0:00:05]} 30. Bxe2 {[%emt 0:00:05]} Ne4 {[%emt 0:03:39]} 31. Kg2 {[%emt 0:00:51]} Ng5 {[%emt 0:00:29]} 32. Re1 {[%emt 0:05:35]} Qd7 {[%emt 0:03:26]} 33. Bd1 {[%emt 0:00:22]} h5 {[%emt 0:00:42]} 34. Re3 {[%emt 0:02:05]} g6 {[%emt 0:00:32]} 35. b4 {[%emt 0:00:12]} Kg7 {[%emt 0:00:35]} 36. Re1 {[%emt 0:01:20]} h4 {[%emt 0:02:27]} 37. gxh4 {[%emt 0:00:05]} Qh3+ {[%emt 0:00:06]} 38. Kg1 {[%emt 0:00:04]} Qxh4 {[%emt 0:00:06]} 39. Re3 {[%emt 0:00:16]} Qd4 {[%emt 0:00:23]} 40. Re1 {[%emt 0:00:55]} Qc3 {[%emt 0:24:01]} 0-1

[Event "17th Memorial Lezcano Montalvo 2025"]
[Site "Gran Canaria"]
[Date "2025.04.14"]
[Round "3.16"]
[White "Sanchez Gonzalez, Diego"]
[Black "Sanz Wawer, Daniel"]
[Result "0-1"]
[Annotator "RC"]
[ECO "B40"]
[WhiteElo "2025"]
[BlackElo "2316"]
[PlyCount "64"]
[EventDate "2025.04.13"]
[EventType "swiss"]
[EventCountry "ESP"]
[SourceTitle "playchess.com"]
[Source "ChessBase"]
[SourceQuality "1"]
[TimeControl "5400+30"]

1. e4 {[%emt 0:00:02]} c5 {[%emt 0:05:14]} 2. Nf3 {[%emt 0:00:39]} e6 {[%emt 1:26:16]} 3. d4 {[%emt 0:00:04]} cxd4 {[%emt 0:00:00]} 4. Nxd4 {[%emt 0:00:07]} Nc6 {[%emt 0:00:00]} 5. Nxc6 {[%emt 0:00:46]} bxc6 {[%emt 0:00:00]} 6. Bd3 {[%emt 0:00:31]} Nf6 {[%emt 0:00:00]} 7. O-O {[%emt 0:00:59]} d5 {[%emt 0:00:00]} 8. Nd2 {[%emt 0:00:50]} Be7 {[%emt 0:00:00]} 9. b3 {[%emt 0:00:29]} O-O {[%emt 0:00:00]} 10. Bb2 {[%emt 0:00:33]} a5 {[%emt 0:00:00]} 11. a4 {[%emt 0:01:24]} Ba6 {[%emt 0:00:00]} 12. Bxa6 {[%emt 0:02:25]} Rxa6 {[%emt 0:00:00]} 13. Qe2 {[%emt 1:28:11]} Qb6 {[%emt 0:00:00]} 14. Rad1 {[%emt 0:00:00]} Raa8 {[%emt 0:00:00]} 15. Kh1 {[%emt 0:00:00]} Rad8 {[%emt 0:00:00]} 16. f4 {[%emt 0:00:00]} c5 {[%emt 0:00:00]} 17. e5 {[%emt 0:00:00]} Nd7 {[%emt 0:00:00]} 18. g4 {[%emt 0:00:00]} f5 {[%emt 0:00:00]} 19. exf6 {[%emt 0:00:00]} Bxf6 {[%emt 0:00:00]} 20. Bxf6 {[%emt 0:00:00]} Rxf6 {[%emt 0:00:00]} 21. g5 {[%emt 0:00:00]} Rf5 {[%emt 0:00:00]} 22. Rde1 {[%emt 0:00:00]} Nf8 {[%emt 0:00:00]} 23. Rf2 {[%emt 0:00:00]} Qd6 {[%emt 0:00:00]} 24. Qe3 {[%emt 0:00:00]} Re8 {[%emt 0:00:00]} 25. Rd1 {[%emt 0:00:00]} Qc7 {[%emt 0:00:00]} 26. Rdf1 {[%emt 0:00:00]} Ng6 {[%emt 0:00:00]} 27. Re1 {[%emt 0:00:00]} Nxf4 {[%emt 0:00:00]} 28. Nf1 {[%emt 0:00:00]} Ref8 {[%emt 0:00:00]} 29. Ng3 {[%emt 0:00:00]} Rxg5 {[%emt 0:00:00]} 30. Ref1 {[%emt 0:00:00]} e5 {[%emt 0:00:00]} 31. h4 {[%emt 0:00:00]} Rg4 {[%emt 0:00:00]} 32. Rh2 {[%emt 0:00:00]} Qe7 {[%emt 0:00:00]} 0-1

[Event "17th Memorial Lezcano Montalvo 2025"]
[Site "Gran Canaria"]
[Date "2025.04.14"]
[Round "3.17"]
[White "Ramirez Maillo, Juan Adonay"]
[Black "Kaczur, Florian"]
[Result "0-1"]
[Annotator "TA"]
[ECO "C41"]
[WhiteElo "1956"]
[BlackElo "2495"]
[PlyCount "56"]
[EventDate "2025.04.13"]
[EventType "swiss"]
[EventCountry "ESP"]
[SourceTitle "playchess.com"]
[Source "ChessBase"]
[SourceQuality "1"]
[TimeControl "5400+30"]

{[%evp 17,56,31,43,45,46,50,26,-2,21,-6,-16,-18,10,0,0,0,0,-133,-143,-139,-118,-270,-243,-377,-370,-349,-317,-375,-367,-364,-362,-349,-351,-932,-931,-917,-917,-915,-915,-974,-944]} 1. e4 {[%emt 0:00:04]} e5 {[%emt 0:00:18]} 2. Nf3 {[%emt 0:00:37]} Nc6 {[%emt 0:00:06]} 3. Bc4 {[%emt 0:00:07]} d6 {[%emt 0:00:28]} 4. d4 {[%emt 0:01:58]} exd4 {[%emt 0:00:12]} 5. Nxd4 {[%emt 0:02:58]} Nf6 {[%emt 0:00:24]} 6. Nc3 {[%emt 0:01:30]} Be7 {[%emt 0:00:18]} 7. O-O {[%emt 0:03:29]} O-O {[%emt 0:02:50]} 8. a4 {[%emt 0:03:44]} Ne5 {[%emt 0:03:53]} 9. Ba2 {[%emt 0:01:22]} c6 {[%emt 0:01:22]} 10. h3 {[%emt 0:02:03] C41: Philidor Defence.} Re8 {[%emt 0:01:16]} 11. Be3 {[%emt 0:06:01]} Bf8 {[%emt 0:05:22]} 12. Nf3 {[%emt 0:06:44] White has an edge.} Qa5 $146 {[%emt 0:16:55]} (12... Qc7 13. Bg5 Nfd7 14. Nh4 Nc5 15. f4 Ng6 16. Nxg6 hxg6 17. f5 gxf5 18. exf5 d5 {½-½ Pereverzev,T (1952)-Mulay,P (2057) Paracin Prestige op 2025 (2)}) 13. Bd4 {[%emt 0:14:47]} Be6 {[%emt 0:09:40]} 14. Bxe6 {[%emt 0:05:23]} Rxe6 {[%emt 0:00:11]} 15. Ng5 {[%emt 0:01:27]} Re7 {[%emt 0:00:40]} 16. f4 {[%emt 0:05:34]} Ned7 {[%emt 0:00:23]} 17. e5 {[%emt 0:00:41]} (17. Qd2 $11 {keeps the balance.}) 17... dxe5 $17 {[%emt 0:07:11]} 18. fxe5 {[%emt 0:00:47]} Nxe5 {[%emt 0:02:18]} 19. Rxf6 $2 {[%emt 0:03:23] This costs White the game.} gxf6 $19 {[%emt 0:00:06]} 20. Qh5 {[%emt 0:00:29]} (20. Nge4 {was the only chance.} Re6 21. Qf1) 20... fxg5 {[%emt 0:01:27]} 21. Qxg5+ {[%emt 0:01:17]} Kh8 {[%emt 0:00:48]} 22. Qf6+ {[%emt 0:14:37] [#]} Bg7 $1 {[%emt 0:00:11]} ({But not} 22... Kg8 23. Qg5+ Kh8 24. Qf6+ Bg7 25. Qxe7 $19) 23. Qxe7 {[%emt 0:00:23][%cal Oa1d1] [#]} Nf3+ $1 {[%emt 0:00:10][%mdl 512]} 24. gxf3 {[%emt 0:00:04]} Bxd4+ {[%emt 0:00:06]} 25. Kf1 $2 {[%emt 0:01:20]} (25. Kh2 Be5+ 26. Kg2 Rg8+ 27. Kf1 Bxc3 28. bxc3 Qxc3 (28... Qf5 $2 29. Qe4 $19) 29. Ra3) 25... Qf5 {[%emt 0:01:19] Black is clearly winning.} 26. Qe4 {[%emt 0:04:10]} Qxh3+ {[%emt 0:00:18]} 27. Ke2 {[%emt 0:00:19]} Rd8 {[%emt 0:00:22] Strongly threatening ...f5.} 28. Rd1 {[%emt 0:01:17]} Qh2+ {[%emt 0:01:55] Weighted Error Value: White=0.71/Black=0.02 (flawless)   Mistake:       	White=4     	---        Inaccurate:     	White=2     	Black=1      OK:         	White=5     	Black=5      Best:        	White=1     	Black=4      Strong:       	---       	Black=1      Brilliant:      	---       	Black=1} 0-1